bitfinex/quotes_SOLUSD_20250805
["timestamp","ask_amount","ask_price","bid_price","bid_amount"]
[1754381275435,11.09453889,166.14,166.11,6.02010715]
[1754381275837,11.09453889,166.13,166.09,6.02083207]
[1754381276043,0.67,166.13,166.09,6.02083207]
[1754381276336,36.42453889,166.14,166.1,0.69]
[1754381276944,42.84,166.17,166.11,11.11453889]
[1754381277159,10.42453889,166.2,166.15,10.42453889]
[1754381277360,10.42453889,166.2,166.16,6.01829561]
[1754381277551,37.09453889,166.2,166.16,6.01829561]
[1754381277757,53.28453889,166.21,166.17,0.69]
[1754381278056,79.28453889,166.21,166.17,0.69]
[1754381278231,79.28453889,166.21,166.16,16.4428345]
[1754381278437,79.28453889,166.21,166.16,17.1328345]
[1754381278872,80.00453889,166.21,166.16,17.1328345]
[1754381280456,26.0,166.19,166.18,10.42453889]
[1754381280756,10.42453889,166.19,166.16,6.01829561]
[1754381280937,11.14453889,166.19,166.16,6.01829561]
[1754381281347,0.72,166.19,166.16,6.01829561]
[1754381281541,10.42453889,166.19,166.15,6.01865783]
[1754381281763,11.14453889,166.18,166.15,6.01865783]
[1754381281943,0.72,166.2,166.15,17.13319672]
[1754381282138,11.14453889,166.2,166.15,17.13319672]
[1754381282366,79.28453889,166.21,166.16,10.42453889]
[1754381282659,80.00453889,166.21,166.16,11.11453889]
[1754381283037,69.58,166.21,166.16,11.11453889]
[1754381283266,10.42453889,166.2,166.16,11.11453889]
[1754381283563,26.0,166.21,166.17,17.13247233]
[1754381284468,26.72,166.21,166.17,16.44247233]
[1754381284637,10.42453889,166.2,166.17,6.01793344]
[1754381284834,37.14453889,166.21,166.17,6.01793344]
[1754381285852,11.14453889,166.2,166.17,6.01793344]
[1754381286052,0.72,166.2,166.17,6.01793344]
[1754381286268,26.0,166.18,166.17,6.01793344]
[1754381286647,0.72,166.2,166.17,6.01793344]
[1754381286851,37.14453889,166.2,166.17,6.01793344]
[1754381287050,37.17453889,166.2,166.17,6.01793344]
[1754381287241,0.72,166.19,166.15,6.01865783]
[1754381287439,11.14453889,166.19,166.15,6.01865783]
[1754381287659,11.14453889,166.18,166.15,6.01865783]
[1754381287865,11.14453889,166.18,166.14,6.0190201]
[1754381288176,11.14453889,166.18,166.14,6.7090201]
[1754381288562,26.0,166.19,166.16,10.42453889]
[1754381288747,26.0,166.19,166.16,11.11453889]
[1754381289647,26.72,166.19,166.17,6.01793344]
[1754381289863,26.0,166.19,166.17,6.01793344]
[1754381290074,0.03,166.2,166.18,11.11453889]
[1754381290576,11.14453889,166.19,166.17,6.01793344]
[1754381291449,0.03,166.2,166.17,6.01793344]
[1754381291769,10.45453889,166.2,166.17,6.01793344]
[1754381291958,0.72,166.19,166.17,6.01793344]
[1754381292673,0.72,166.19,166.14,15.736942]
[1754381292674,11.14453889,166.18,166.14,6.0190201]
[1754381292878,10.42453889,166.17,166.14,6.0190201]
[1754381293175,11.14453889,166.16,166.13,48.81923738]
[1754381293389,10.42453889,166.15,166.13,6.01923738]
[1754381293888,15.24837714,166.17,166.12,6.01974476]
[1754381294050,10.42453889,166.13,166.12,6.01974476]
[1754381294552,11.14453889,166.14,166.12,6.01974476]
[1754381295055,10.42453889,166.13,166.1,6.02046959]
[1754381295261,11.14453889,166.13,166.1,6.02046959]
[1754381296169,10.42453889,166.12,166.1,6.02046959]
[1754381296346,11.14453889,166.11,166.09,6.02077486]
[1754381296552,10.42453889,166.1,166.09,6.02077486]
[1754381296757,10.42453889,166.1,166.06,0.06]
[1754381296956,6.01905651,166.14,166.06,0.06]
[1754381296957,10.42453889,166.08,166.06,0.06]
[1754381297155,10.42453889,166.07,166.06,0.06]
[1754381298164,11.14453889,166.07,166.06,0.06]
[1754381298894,11.14453889,166.07,166.04,0.06]
[1754381298895,41.24837714,166.05,166.04,0.06]
[1754381299055,57.69519847,166.05,166.04,0.06]
[1754381299258,26.0,166.01,165.95,9.90192273]
[1754381299478,10.42453889,165.97,165.95,15.92774302]
[1754381300351,10.42453889,165.96,165.95,9.90192273]
[1754381301072,11.14453889,165.96,165.95,9.90192273]
[1754381302371,10.42453889,165.96,165.95,15.92783414]
[1754381302581,10.42453889,165.96,165.95,9.90192273]
[1754381302782,11.14453889,165.96,165.95,9.90192273]
[1754381304681,11.14453889,165.96,165.95,15.92783414]
[1754381305183,36.42453889,165.96,165.95,15.92783414]
[1754381305486,37.14453889,165.96,165.95,15.92783414]
[1754381305667,36.42453889,165.96,165.95,15.92783414]
[1754381305992,10.42453889,165.98,165.95,16.61783414]
[1754381306472,10.42453889,165.96,165.95,9.90192273]
[1754381306783,37.14453889,165.96,165.95,9.90192273]
[1754381306986,36.42453889,165.96,165.95,15.92783414]
[1754381307685,36.42453889,165.96,165.95,9.90192273]
[1754381307867,36.42453889,165.96,165.95,15.92783414]
[1754381308269,26.0,165.96,165.95,15.92783414]
[1754381308469,36.42453889,165.96,165.95,15.92783414]
[1754381308793,36.42453889,165.96,165.95,15.98783414]
[1754381309091,37.10453889,165.96,165.95,9.96192273]
[1754381310290,36.42453889,165.96,165.95,15.98783414]
[1754381311166,36.42453889,165.96,165.95,9.96192273]
[1754381311367,37.10453889,165.96,165.95,9.96192273]
[1754381311566,36.42453889,165.96,165.95,15.98783414]
[1754381312180,36.42453889,165.96,165.95,9.96192273]
[1754381312387,37.10453889,165.96,165.95,9.96192273]
[1754381314106,69.23291603,165.96,165.95,9.96192273]
[1754381314689,75.25846435,165.96,165.95,9.96192273]
[1754381315503,15.10621557,165.92,165.85,0.69]
[1754381315701,10.42453889,165.91,165.86,11.11453889]
[1754381316016,10.42453889,165.91,165.87,0.69]
[1754381316376,11.10453889,165.91,165.85,0.69]
[1754381316592,10.42453889,165.96,165.9,10.42453889]
[1754381316896,26.21075446,165.96,165.91,10.42453889]
[1754381317102,0.68,165.98,165.94,10.42453889]
[1754381317275,11.10453889,165.98,165.94,6.02606879]
[1754381317475,18.101185,166.01,165.95,10.42453889]
[1754381317677,69.33075446,166.0,165.95,10.42453889]
[1754381317900,26.0,165.97,165.95,10.42453889]
[1754381318408,11.10453889,165.99,165.95,10.42453889]
[1754381318602,58.22621557,166.0,165.91,21.09577481]
[1754381318603,84.22621557,166.0,165.91,21.09577481]
[1754381318806,0.68,165.98,165.95,10.42453889]
[1754381319003,0.68,165.98,165.94,10.42453889]
[1754381319211,0.68,165.98,165.95,6.02591141]
[1754381321709,0.68,165.98,165.95,16.4504503]
[1754381322005,11.10453889,166.02,165.97,10.42453889]
[1754381322189,43.76,166.01,165.97,10.42453889]
[1754381322505,10.42453889,165.98,165.93,0.45]
[1754381322813,10.42453889,165.99,165.94,10.42453889]
[1754381323107,11.10453889,165.99,165.94,10.42453889]
[1754381323903,0.68,165.98,165.94,10.42453889]
[1754381324099,0.68,165.98,165.95,6.02591141]
[1754381324910,11.10453889,165.98,165.95,6.02591141]
[1754381325408,0.68,165.98,165.94,6.02627455]
[1754381325611,11.10453889,165.98,165.94,6.02627455]
[1754381326889,10.42453889,165.99,165.94,16.45081344]
[1754381327289,0.68,165.98,165.94,16.45081344]
[1754381327493,11.10453889,165.98,165.94,6.02627455]
[1754381327701,0.68,165.97,165.94,6.02627455]
[1754381327916,11.10453889,165.97,165.94,6.02627455]
[1754381328221,10.42453889,165.95,165.92,0.06]
[1754381328532,10.42453889,165.94,165.92,0.06]
[1754381328820,32.54514398,165.93,165.92,0.06]
[1754381329029,26.0,165.93,165.92,0.06]
[1754381330703,37.1523965,165.93,165.92,0.06]
[1754381331011,43.17903423,165.93,165.92,0.06]
[1754381331540,37.1523965,165.93,165.92,0.06]
[1754381332199,58.42741137,165.93,165.92,0.06]
[1754381333926,101.58741137,165.93,165.92,0.06]
[1754381334513,58.42741137,165.93,165.92,0.06]
[1754381334835,101.64741137,165.93,165.92,0.06]
[1754381335214,101.64741137,165.93,165.81,0.45]
[1754381335215,26.0,165.89,165.81,0.45]
[1754381335534,10.4723965,165.84,165.81,0.45]
[1754381336031,10.4723965,165.84,165.8,10.4723965]
[1754381336210,53.6923965,165.85,165.8,10.4723965]
[1754381336524,10.4723965,165.83,165.79,6.03172688]
[1754381337228,10.4723965,165.83,165.79,6.48172688]
[1754381337929,10.4723965,165.84,165.79,16.50412338]
[1754381338128,53.6923965,165.85,165.8,10.9223965]
[1754381338926,54.3923965,165.85,165.8,10.9223965]
[1754381339126,10.4723965,165.84,165.81,6.03099933]
[1754381339435,10.4723965,165.82,165.78,6.13183365]
[1754381339632,10.4723965,165.79,165.78,0.1]
[1754381339833,53.6723965,165.79,165.78,0.1]
[1754381340021,54.3723965,165.79,165.78,0.1]
[1754381340539,2.07197199,165.9,165.78,17.05448722]
[1754381340849,0.7,165.86,165.81,10.4723965]
[1754381341015,0.7,165.86,165.78,21.21231752]
[1754381341346,80.4323965,165.86,165.82,6.03063562]
[1754381341518,26.0,165.85,165.82,6.03063562]
[1754381341723,37.1723965,165.85,165.82,6.03063562]
[1754381342128,0.7,165.84,165.82,6.03063562]
[1754381342434,0.7,165.84,165.81,6.03092589]
[1754381343019,36.4723965,165.85,165.81,6.03092589]
[1754381343216,26.0,165.85,165.81,16.95332239]
[1754381343565,36.4723965,165.85,165.81,16.50332239]
[1754381343736,26.7,165.85,165.81,16.50332239]
[1754381344057,37.1723965,165.85,165.81,16.50332239]
[1754381344629,26.7,165.85,165.81,16.50332239]
[1754381345044,37.1723965,165.85,165.81,6.03092589]
[1754381345346,10.4723965,165.9,165.84,16.50230484]
[1754381345585,10.4723965,165.88,165.84,6.02990834]
[1754381346030,11.1723965,165.88,165.84,6.02990834]
[1754381346227,0.7,165.88,165.84,16.50230484]
[1754381346432,53.6923965,165.89,165.85,10.4723965]
[1754381346645,43.22,165.91,165.86,10.4723965]
[1754381346869,43.92,165.91,165.86,0.45]
[1754381347041,15.10621557,165.95,165.84,21.5546792]
[1754381347354,10.4723965,165.91,165.87,6.02881774]
[1754381347829,10.4723965,165.9,165.87,6.02881774]
[1754381348025,11.1723965,165.9,165.87,6.02881774]
[1754381348262,10.4723965,165.91,165.87,6.02881774]
[1754381348566,26.0,165.9,165.87,6.02881774]
[1754381348766,26.7,165.92,165.87,6.02881774]
[1754381348767,10.4723965,165.91,165.87,6.02881774]
[1754381349228,11.1723965,165.91,165.87,6.02881774]
[1754381349428,11.1723965,165.91,165.86,6.02918123]
[1754381349656,54.3523965,165.93,165.87,0.45]
[1754381349875,54.3523965,165.93,165.88,10.4723965]
[1754381350071,10.5023965,165.94,165.89,10.4723965]
[1754381350369,0.7,165.93,165.89,10.4723965]
[1754381351366,0.7,165.92,165.89,10.4723965]
[1754381351568,0.7,165.92,165.9,6.02772754]
[1754381351753,10.5023965,165.94,165.9,6.02772754]
[1754381351754,11.2023965,165.94,165.9,6.02772754]
[1754381352480,0.73,165.94,165.9,16.50012404]
[1754381352677,0.73,165.94,165.9,12.57089887]
[1754381352880,0.03,165.93,165.9,12.57089887]
[1754381353177,0.03,165.93,165.92,6.54317133]
[1754381353562,0.03,165.93,165.92,12.57017229]
[1754381354671,0.03,165.93,165.92,13.02017229]
[1754381354871,0.03,165.93,165.92,12.57017229]
[1754381356778,0.03,165.94,165.92,101.12287238]
[1754381356974,8.6695622,166.0,165.93,6.99317133]
[1754381357177,8.6695622,166.0,165.97,6.54317133]
[1754381357379,8.6695622,166.0,165.98,6.54317133]
[1754381357581,8.6695622,166.0,165.99,6.99317133]
[1754381358977,8.6695622,166.0,165.99,13.01763063]
[1754381359668,8.6695622,166.0,165.99,12.56763063]
[1754381360665,8.6695622,166.0,165.99,16.48111758]
[1754381362662,8.6695622,166.0,165.99,6.0244593]
[1754381363384,8.6695622,166.0,165.99,16.48111758]
[1754381364493,8.6695622,166.0,165.99,16.93111758]
[1754381365993,0.03,166.04,166.03,10.45665828]
[1754381366673,0.03,166.04,166.03,16.47966617]
[1754381370580,0.74,166.04,166.03,6.02300789]
[1754381370775,0.74,166.04,166.02,6.02324966]
[1754381370998,10.45665828,166.03,165.99,6.0244593]
[1754381371184,0.74,166.04,165.99,6.0244593]
[1754381371185,11.16665828,166.02,165.99,6.0244593]
[1754381371501,0.71,166.01,165.99,6.0244593]
[1754381371896,11.19665828,166.04,165.99,16.48111758]
[1754381372091,0.71,166.03,165.99,31.54226584]
[1754381372282,0.71,166.02,165.99,31.54226584]
[1754381372683,11.19665828,166.04,165.99,31.54226584]
[1754381372884,0.71,166.03,165.99,31.54226584]
[1754381373291,0.03,166.04,166.01,10.45665828]
[1754381373495,0.71,166.03,166.0,10.45665828]
[1754381373683,0.71,166.02,165.99,6.0244593]
[1754381373883,10.45665828,166.01,165.99,6.0244593]
[1754381374115,0.71,166.0,165.99,6.0244593]
[1754381374406,11.16665828,166.0,165.94,6.02627455]
[1754381374601,10.45665828,165.99,165.95,43.02]
[1754381374798,0.71,165.99,165.95,53.47665828]
[1754381375007,0.71,165.99,165.95,79.47665828]
[1754381375886,0.71,165.99,165.95,69.02]
[1754381376081,0.71,165.99,165.96,6.02554832]
[1754381376282,0.03,166.02,165.99,26.0]
[1754381376598,0.03,166.02,166.0,10.45665828]
[1754381377596,0.74,166.02,165.99,10.45665828]
[1754381377988,0.03,166.02,166.0,10.45665828]
[1754381378198,0.03,166.02,166.01,6.02373351]
[1754381378518,0.03,166.02,166.01,16.48039179]
[1754381378808,0.03,166.04,166.01,75.00972556]
[1754381378995,0.03,166.04,166.03,10.45665828]
[1754381379720,0.03,166.06,166.03,10.90665828]
[1754381379887,0.03,166.06,166.05,10.45665828]
[1754381380226,7.93657588,166.09,166.06,21.07671925]
[1754381380409,7.93657588,166.09,166.08,10.45665828]
[1754381381599,0.2,166.09,166.08,10.45665828]
[1754381381984,0.91,166.09,166.08,10.45665828]
[1754381382189,0.91,166.09,166.08,6.0211946]
[1754381382906,0.91,166.09,166.08,16.47785288]
[1754381382907,0.2,166.09,166.08,16.47785288]
[1754381384992,0.2,166.09,166.08,6.0211946]
[1754381385288,0.91,166.09,166.08,6.0211946]
[1754381385710,0.2,166.09,166.08,6.0211946]
[1754381385883,0.2,166.09,166.08,16.47785288]
[1754381386283,0.2,166.09,166.08,6.0211946]
[1754381386505,0.91,166.09,166.08,6.0211946]
[1754381386709,11.36665828,166.09,166.07,49.06142407]
[1754381386911,0.71,166.08,166.07,49.06142407]
[1754381387107,11.16665828,166.08,166.04,6.02264514]
[1754381387309,10.45665828,166.06,166.04,6.02264514]
[1754381387510,0.71,166.06,166.04,49.02264514]
[1754381388310,11.16665828,166.05,166.02,43.02]
[1754381388508,11.16665828,166.04,166.02,43.02]
[1754381389020,0.71,166.04,166.02,43.02]
[1754381389315,0.71,166.04,166.03,6.02300789]
[1754381390316,11.16665828,166.04,166.02,49.04327001]
[1754381390617,11.16665828,166.03,166.02,6.02327001]
[1754381390794,11.16665828,166.03,165.96,0.45]
[1754381390795,26.41503542,166.03,165.95,6.02591141]
[1754381390989,10.45665828,165.99,165.95,6.02591141]
[1754381391216,0.71,166.02,165.95,6.02591141]
[1754381391217,10.45665828,166.0,165.96,0.68]
[1754381391402,10.45665828,166.01,165.97,6.70518527]
[1754381391599,10.45665828,166.01,165.98,0.68]
[1754381391804,10.45665828,166.01,165.97,6.02518527]
[1754381391805,10.45665828,166.0,165.97,6.70518527]
[1754381392517,10.45665828,166.0,165.97,6.02518527]
[1754381393397,26.71,166.02,165.97,0.68]
[1754381393597,37.16665828,166.02,165.97,10.45665828]
[1754381393807,10.45665828,166.02,165.98,0.68]
[1754381394524,11.16665828,166.04,165.99,11.13665828]
[1754381394707,10.45665828,166.03,165.98,53.59665828]
[1754381394900,11.16665828,166.02,165.98,43.14]
[1754381395422,11.16665828,166.02,165.99,6.0244593]
[1754381395804,10.45665828,166.03,165.99,6.7044593]
[1754381396719,11.16665828,166.03,165.99,6.7044593]
[1754381396902,11.16665828,166.03,165.99,6.0244593]
[1754381397808,10.45665828,166.02,165.99,6.0244593]
[1754381398019,11.16665828,166.02,165.99,6.0244593]
[1754381399939,10.45665828,166.03,165.99,6.0244593]
[1754381400105,10.45665828,166.02,165.99,93.5244593]
[1754381400413,11.15665828,166.01,165.98,49.22471057]
[1754381400618,0.14216157,165.99,165.98,0.06]
[1754381400828,33.38450158,165.99,165.98,0.06]
[1754381401211,48.49071715,165.99,165.98,0.06]
[1754381401430,15.24837714,165.98,165.94,0.06]
[1754381401609,26.0,165.97,165.94,0.06]
[1754381401809,26.0,165.97,165.94,6.08627455]
[1754381402026,6.54234001,165.96,165.94,6.08627455]
[1754381402218,6.54234001,165.96,165.94,0.06]
[1754381402614,26.0,165.97,165.94,0.06]
[1754381402615,10.46537029,165.97,165.94,0.06]
[1754381402816,10.46537029,165.97,165.95,0.72]
[1754381403016,10.46537029,165.98,165.95,0.72]
[1754381403219,10.46537029,165.98,165.96,0.72]
[1754381403535,0.7,166.03,165.97,11.18537029]
[1754381403710,26.0,166.02,165.98,11.18537029]
[1754381404215,36.46537029,166.02,165.99,6.0244593]
[1754381404532,37.16537029,166.02,165.99,6.0244593]
[1754381406032,11.16537029,166.02,165.98,6.02482226]
[1754381406410,0.84216157,166.04,165.98,94.24482226]
[1754381406610,12.94837714,166.05,165.98,94.24482226]
[1754381407416,26.0,166.06,165.99,11.18537029]
[1754381407722,0.03,166.07,166.04,10.46537029]
[1754381407933,0.03,166.07,166.05,10.46537029]
[1754381408115,0.03,166.07,166.06,6.02191978]
[1754381408316,0.03,166.07,166.06,6.74191978]
[1754381408818,0.03,166.07,166.06,6.02191978]
[1754381409027,0.03,166.07,166.06,6.74191978]
[1754381409428,0.03,166.07,166.06,6.02191978]
[1754381410244,0.03,166.07,166.06,17.20729007]
[1754381410622,0.2,166.09,166.06,17.20729007]
[1754381410623,0.2,166.09,166.06,58.86428151]
[1754381410937,0.03,166.13,166.06,58.86428151]
[1754381410938,0.03,166.13,166.11,26.0]
[1754381411237,7.74525659,166.17,166.08,46.93074058]
[1754381411238,7.74525659,166.17,166.15,26.0]
[1754381411544,7.74525659,166.17,166.16,11.18537029]
[1754381412038,0.03,166.2,166.17,6.01793344]
[1754381412243,0.03,166.2,166.19,10.46537029]
[1754381412750,0.03,166.2,166.19,11.18537029]
[1754381413125,0.2,166.24,166.19,11.18537029]
[1754381413431,0.2,166.24,166.23,10.46537029]
[1754381413657,0.03,166.3,166.28,10.46537029]
[1754381414145,0.03,166.3,166.27,43.18]
[1754381414146,0.03,166.3,166.29,17.198961]
[1754381414924,0.03,166.3,166.29,6.73359071]
[1754381415124,0.03,166.3,166.29,17.198961]
[1754381415927,0.03,166.3,166.29,0.72]
[1754381416124,0.03,166.3,166.29,17.198961]
[1754381417017,0.03,166.3,166.29,6.73359071]
[1754381417213,0.03,166.3,166.29,6.01359071]
[1754381417421,0.03,166.3,166.29,16.478961]
[1754381418254,0.03,166.3,166.29,17.198961]
[1754381418635,0.03,166.3,166.29,6.01359071]
[1754381419242,0.03,166.3,166.29,16.478961]
[1754381419442,0.03,166.3,166.29,17.198961]
[1754381421353,1e-08,166.3,166.29,33.04869721]
[1754381422269,1e-08,166.3,166.29,59.04869721]
[1754381422634,1e-08,166.3,166.29,33.04869721]
[1754381423659,1e-08,166.3,166.29,76.14869721]
[1754381424034,1e-08,166.3,166.29,86.298961]
[1754381425964,1e-08,166.3,166.29,101.54733814]
[1754381426768,1e-08,166.3,166.29,75.54733814]
[1754381427477,1e-08,166.3,166.29,85.54733814]
[1754381427679,1e-08,166.3,166.29,86.14869721]
[1754381432367,1e-08,166.3,166.29,76.14869721]
[1754381432577,1e-08,166.3,166.29,86.14869721]
[1754381433085,1e-08,166.3,166.29,88.55550821]
[1754381434265,1e-08,166.3,166.29,78.09013792]
[1754381434466,1e-08,166.3,166.29,88.55550821]
[1754381434883,1e-08,166.3,166.29,35.31334664]
[1754381435191,1e-08,166.3,166.29,75.86653564]
[1754381436272,1e-08,166.3,166.29,16.478961]
[1754381436475,1e-08,166.3,166.29,85.458961]
[1754381436866,0.45000001,166.3,166.29,6.01359071]
[1754381437196,0.45000001,166.3,166.29,48.99359071]
[1754381437684,1e-08,166.3,166.29,48.99359071]
[1754381437986,1e-08,166.3,166.29,59.458961]
[1754381438290,1e-08,166.3,166.29,48.99359071]
[1754381438584,1e-08,166.3,166.29,59.458961]
[1754381438759,1e-08,166.3,166.29,48.99359071]
[1754381438959,0.45000001,166.3,166.29,48.99359071]
[1754381440380,10.9153703,166.3,166.27,6.01404554]
[1754381440689,10.46537029,166.28,166.25,6.01503759]
[1754381440887,10.91537029,166.27,166.26,42.98]
[1754381441087,1e-08,166.3,166.26,53.44537029]
[1754381441264,1e-08,166.3,166.27,10.46537029]
[1754381441458,1e-08,166.3,166.28,53.48537029]
[1754381441897,1e-08,166.3,166.29,10.46537029]
[1754381442064,10.4653703,166.3,166.28,43.02]
[1754381442271,0.45,166.29,166.28,43.02]
[1754381442591,1e-08,166.3,166.28,49.03395236]
[1754381442773,0.45000001,166.3,166.28,49.03395236]
[1754381443094,10.91537029,166.29,166.28,49.03395236]
[1754381443591,10.91537029,166.29,166.25,6.01503759]
[1754381443794,10.46537029,166.26,166.25,6.01503759]
[1754381443978,10.46537029,166.26,166.25,49.05503759]
[1754381444671,10.46537029,166.28,166.25,49.05503759]
[1754381445490,10.46537029,166.26,166.25,49.05503759]
[1754381445887,10.46537029,166.28,166.25,49.05503759]
[1754381446790,10.46537029,166.26,166.25,43.04]
[1754381446995,10.46537029,166.26,166.24,43.08]
[1754381447179,10.56537029,166.25,166.24,6.07539942]
[1754381447376,10.46537029,166.27,166.24,6.07539942]
[1754381447907,0.1,166.29,166.25,43.04]
[1754381448114,10.46537029,166.26,166.25,43.04]
[1754381448404,10.56537029,166.26,166.24,0.06]
[1754381448609,6.15546539,166.3,166.24,0.06]
[1754381448610,10.56537029,166.25,166.24,0.06]
[1754381449194,10.46537029,166.27,166.24,0.06]
[1754381449505,10.46537029,166.28,166.25,43.04]
[1754381449705,10.46537029,166.27,166.25,43.04]
[1754381450903,10.56537029,166.26,166.25,43.04]
[1754381451318,10.56537029,166.26,166.24,0.06]
[1754381451516,10.56537029,166.25,166.24,0.06]
[1754381452418,10.70753186,166.25,166.24,0.06]
[1754381453608,10.46537029,166.25,166.24,0.06]
[1754381454187,10.46537029,166.26,166.24,0.06]
[1754381454510,10.46537029,166.25,166.24,0.06]
[1754381455083,10.91537029,166.25,166.24,0.06]
[1754381455313,11.05753186,166.25,166.24,0.06]
[1754381456620,17.07256945,166.25,166.24,0.06]
[1754381457601,11.05753186,166.25,166.24,0.06]
[1754381458497,10.46537029,166.25,166.24,0.06]
[1754381459214,10.91537029,166.25,166.24,0.06]
[1754381460628,10.46537029,166.25,166.24,0.06]
[1754381460795,6.52106034,166.25,166.24,0.06]
[1754381461321,26.0,166.28,166.24,0.76]
[1754381461503,32.01406715,166.28,166.24,0.06]
[1754381461821,6.52106034,166.25,166.24,0.06]
[1754381463137,26.0,166.28,166.24,0.06]
[1754381463441,6.52106034,166.26,166.24,0.76]
[1754381463744,6.52106034,166.25,166.24,0.06]
[1754381464315,0.24216157,166.27,166.24,0.06]
[1754381464647,6.52106034,166.25,166.24,0.06]
[1754381465025,6.52106034,166.28,166.24,0.76]
[1754381465229,6.52106034,166.28,166.25,0.7]
[1754381465415,6.52106034,166.28,166.24,0.06]
[1754381465622,1e-08,166.3,166.24,0.06]
[1754381465623,6.52106034,166.29,166.26,0.7]
[1754381465825,6.52106034,166.29,166.26,88.2]
[1754381466635,10.42554988,166.29,166.27,6.01431406]
[1754381467525,10.42554989,166.3,166.27,6.71431406]
[1754381467848,10.42554988,166.29,166.27,6.71431406]
[1754381469231,10.42554989,166.3,166.27,94.21431406]
[1754381470034,1e-08,166.3,166.28,0.7]
[1754381470235,1e-08,166.3,166.29,0.7]
[1754381470439,1e-08,166.3,166.28,0.7]
[1754381470650,10.42554989,166.3,166.28,0.7]
[1754381470851,10.42554988,166.29,166.27,87.5]
[1754381471036,10.42554988,166.28,166.27,87.5]
[1754381471541,1e-08,166.3,166.27,87.5]
[1754381471747,10.42554988,166.28,166.27,87.5]
[1754381472763,10.42554989,166.3,166.27,94.21431406]
[1754381473054,1e-08,166.3,166.28,0.7]
[1754381473246,1e-08,166.3,166.29,6.71359071]
[1754381473858,10.42554989,166.3,166.27,87.5]
[1754381474033,10.42554988,166.28,166.26,43.02]
[1754381474240,10.42554988,166.27,166.26,49.0346758]
[1754381475248,10.42554988,166.28,166.26,49.7346758]
[1754381475463,10.42554988,166.29,166.27,0.7]
[1754381475662,10.42554988,166.29,166.28,0.7]
[1754381475969,10.42554988,166.29,166.26,49.0346758]
[1754381476147,10.42554988,166.28,166.26,49.7346758]
[1754381476350,10.42554988,166.28,166.26,49.0346758]
[1754381476568,10.42554988,166.28,166.27,0.7]
[1754381477441,10.42554988,166.28,166.26,49.0346758]
[1754381477975,10.42554988,166.27,166.26,43.02]
[1754381478149,10.42554988,166.27,166.25,6.01495808]
[1754381478349,10.42554988,166.26,166.25,6.01495808]
[1754381478549,0.45000001,166.3,166.25,6.71495808]
[1754381479059,1e-08,166.3,166.26,0.7]
[1754381479259,10.42554988,166.28,166.27,0.7]
[1754381479463,10.42554988,166.28,166.27,6.71431406]
[1754381480070,10.42554988,166.28,166.27,6.01431406]
[1754381480469,10.42554988,166.28,166.25,6.01491063]
[1754381480671,10.42554988,166.26,166.24,49.05528729]
[1754381480851,10.42554988,166.25,166.24,6.07528729]
[1754381481048,10.42554988,166.25,166.24,0.06]
[1754381481299,10.87554988,166.25,166.24,0.06]
[1754381482072,10.42554988,166.25,166.24,0.06]
[1754381486054,0.14216157,166.26,166.24,0.06]
[1754381486278,10.42554988,166.25,166.24,0.06]
[1754381486660,6.52138035,166.25,166.24,0.06]
[1754381488822,33.11354192,166.25,166.24,0.06]
[1754381489302,39.12857951,166.25,166.24,0.06]
[1754381489498,32.52138035,166.25,166.24,0.06]
[1754381489801,6.52138035,166.25,166.24,0.06]
[1754381491089,6.52138035,166.25,166.24,0.71]
[1754381491391,6.52138035,166.25,166.24,0.06]
[1754381491978,6.52138035,166.25,166.24,0.71]
[1754381492598,6.52138035,166.25,166.24,0.06]
[1754381493192,6.97138035,166.25,166.24,0.06]
[1754381493513,54.23479508,166.25,166.24,0.06]
[1754381495027,26.0,166.23,166.22,0.06]
[1754381495193,64.70975749,166.23,166.22,0.06]
[1754381495393,65.15975749,166.23,166.22,0.06]
[1754381495594,65.15975749,166.23,166.17,87.5]
[1754381495595,6.52138035,166.18,166.17,87.5]
[1754381495793,6.52138035,166.18,166.16,0.65]
[1754381496091,6.52138035,166.17,166.16,6.66829561]
[1754381499399,48.95586203,166.23,166.16,21.71403465]